[Event "*** SCC Grand Prix: Titled Tuesday Blitz"]
[Site "Chess.com"]
[Date "2020.10.13"]
[Round "3"]
[White "JuliaEfremova"]
[Black "vaishali2001"]
[Result "0-1"]
[WhiteElo "2323"]
[BlackElo "2551"]
[TimeControl "180+1"]
[EndTime "10:29:41 PDT"]
[Termination "vaishali2001 won by checkmate"]

1. d4 {[%clk 0:03:00.9]} 1... d5 {[%clk 0:02:58.4]} 2. Bf4 {[%clk 0:03:00.9]}
2... Nf6 {[%clk 0:02:56.5]} 3. Nf3 {[%clk 0:02:59.9]} 3... e6 {[%clk 0:02:50.4]}
4. e3 {[%clk 0:03:00.3]} 4... Bd6 {[%clk 0:02:50.8]} 5. Ne5 {[%clk 0:02:59.1]}
5... c5 {[%clk 0:02:44.5]} 6. c3 {[%clk 0:02:58.8]} 6... O-O {[%clk 0:02:44.1]}
7. Nd2 {[%clk 0:02:57.9]} 7... Qc7 {[%clk 0:02:44.1]} 8. Bd3 {[%clk 0:02:56.4]}
8... Nc6 {[%clk 0:02:36.5]} 9. Ng4 {[%clk 0:02:39.1]} 9... Nxg4 {[%clk
0:02:27.2]} 10. Bxd6 {[%clk 0:02:38.5]} 10... Qxd6 {[%clk 0:02:05.7]} 11. Qxg4
{[%clk 0:02:37.7]} 11... cxd4 {[%clk 0:01:57.1]} 12. exd4 {[%clk 0:02:32.6]}
12... e5 {[%clk 0:01:56.1]} 13. Qg3 {[%clk 0:02:23.9]} 13... Qe7 {[%clk
0:01:35]} 14. dxe5 {[%clk 0:02:19.2]} 14... Nxe5 {[%clk 0:01:28.2]} 15. O-O
{[%clk 0:02:18.4]} 15... Qf6 {[%clk 0:01:02.2]} 16. Bc2 {[%clk 0:02:11.8]} 16...
Bf5 {[%clk 0:00:56.1]} 17. Bxf5 {[%clk 0:02:10.2]} 17... Qxf5 {[%clk 0:00:57]}
18. Nb3 {[%clk 0:02:09.9]} 18... Rfe8 {[%clk 0:00:54.9]} 19. Rad1 {[%clk
0:02:05.3]} 19... Rad8 {[%clk 0:00:48.7]} 20. Nd4 {[%clk 0:02:02.9]} 20... Qf6
{[%clk 0:00:46.1]} 21. h3 {[%clk 0:02:00.6]} 21... h5 {[%clk 0:00:40]} 22. f4
{[%clk 0:01:53.3]} 22... Nc4 {[%clk 0:00:36.2]} 23. Rf2 {[%clk 0:01:46.8]} 23...
h4 {[%clk 0:00:31.1]} 24. Qg5 {[%clk 0:01:46.8]} 24... Qxg5 {[%clk 0:00:22.9]}
25. fxg5 {[%clk 0:01:47.7]} 25... Re5 {[%clk 0:00:22.1]} 26. Nf5 {[%clk
0:01:42.1]} 26... Rd7 {[%clk 0:00:17]} 27. g6 {[%clk 0:01:22.3]} 27... fxg6
{[%clk 0:00:13]} 28. Nxh4 {[%clk 0:01:22.6]} 28... g5 {[%clk 0:00:10.5]} 29. Nf3
{[%clk 0:01:22.9]} 29... Rf5 {[%clk 0:00:08.8]} 30. Rd4 {[%clk 0:01:13.5]} 30...
Kh7 {[%clk 0:00:07.1]} 31. Rg4 {[%clk 0:01:06.3]} 31... Kh6 {[%clk 0:00:05]} 32.
h4 {[%clk 0:01:05.7]} 32... gxh4 {[%clk 0:00:04.1]} 33. Rxh4+ {[%clk 0:01:06.6]}
33... Rh5 {[%clk 0:00:04.3]} 34. Rxh5+ {[%clk 0:01:05.4]} 34... Kxh5 {[%clk
0:00:05.2]} 35. Nd4 {[%clk 0:01:06]} 35... Re7 {[%clk 0:00:04.3]} 36. Rf5+
{[%clk 0:01:03.3]} 36... g5 {[%clk 0:00:04.8]} 37. Rxd5 {[%clk 0:01:02.8]} 37...
Re1+ {[%clk 0:00:04.5]} 38. Kf2 {[%clk 0:01:01.5]} 38... Rb1 {[%clk 0:00:05]}
39. b3 {[%clk 0:01:00.7]} 39... Rb2+ {[%clk 0:00:04.7]} 40. Kg3 {[%clk 0:00:58]}
40... Ne3 {[%clk 0:00:04.9]} 41. Rd8 {[%clk 0:00:49.2]} 41... Nxg2 {[%clk
0:00:03.4]} 42. Nf3 {[%clk 0:00:43.1]} 42... Ne3 {[%clk 0:00:03]} 43. Rh8+
{[%clk 0:00:42.4]} 43... Kg6 {[%clk 0:00:03.4]} 44. Rg8+ {[%clk 0:00:42.8]}
44... Kf6 {[%clk 0:00:03.8]} 45. Rf8+ {[%clk 0:00:32.5]} 45... Ke7 {[%clk
0:00:03.2]} 46. Rb8 {[%clk 0:00:32.4]} 46... Rxa2 {[%clk 0:00:02.8]} 47. Rxb7+
{[%clk 0:00:30.5]} 47... Kf6 {[%clk 0:00:03.5]} 48. Rb8 {[%clk 0:00:27.4]} 48...
Rg2+ {[%clk 0:00:03.7]} 49. Kh3 {[%clk 0:00:25.4]} 49... g4+ {[%clk 0:00:04.1]}
50. Kh4 {[%clk 0:00:25.9]} 50... Nf5+ {[%clk 0:00:04]} 51. Kh5 {[%clk
0:00:23.1]} 51... gxf3 {[%clk 0:00:04.9]} 52. Rf8+ {[%clk 0:00:15.3]} 52... Ke5
{[%clk 0:00:05.4]} 53. Re8+ {[%clk 0:00:15.5]} 53... Kf4 {[%clk 0:00:06]} 54.
Re1 {[%clk 0:00:16.3]} 54... Rg5# {[%clk 0:00:06]} 0-1

[Event "*** SCC Grand Prix: Titled Tuesday Blitz"]
[Site "Chess.com"]
[Date "2020.10.13"]
[Round "3"]
[White "JiiHart"]
[Black "Mr_Sinigami"]
[Result "0-1"]
[WhiteElo "2076"]
[BlackElo "2491"]
[TimeControl "180+1"]
[EndTime "10:29:41 PDT"]
[Termination "Mr_Sinigami won by resignation"]

1. e4 {[%clk 0:03:00.9]} 1... c5 {[%clk 0:02:59]} 2. Nf3 {[%clk 0:03:00.8]} 2...
e6 {[%clk 0:02:57.9]} 3. d4 {[%clk 0:03:01.2]} 3... cxd4 {[%clk 0:02:58.1]} 4.
Nxd4 {[%clk 0:03:01.8]} 4... a6 {[%clk 0:02:58.7]} 5. Nc3 {[%clk 0:03:01.7]}
5... Qc7 {[%clk 0:02:58.7]} 6. g3 {[%clk 0:03:01.6]} 6... Nf6 {[%clk 0:02:58.2]}
7. Bg2 {[%clk 0:03:01.3]} 7... Be7 {[%clk 0:02:48.4]} 8. O-O {[%clk 0:03:00]}
8... O-O {[%clk 0:02:48.3]} 9. h3 {[%clk 0:02:53.1]} 9... Nc6 {[%clk 0:02:44.8]}
10. Be3 {[%clk 0:02:52.8]} 10... d6 {[%clk 0:02:31.1]} 11. Qe2 {[%clk
0:02:42.9]} 11... Bd7 {[%clk 0:02:28.8]} 12. Rad1 {[%clk 0:02:30.6]} 12... b5
{[%clk 0:02:27.8]} 13. Nxc6 {[%clk 0:02:05.4]} 13... Bxc6 {[%clk 0:02:25]} 14.
a3 {[%clk 0:02:05.2]} 14... Qb7 {[%clk 0:02:19.2]} 15. Bd4 {[%clk 0:01:59.4]}
15... e5 {[%clk 0:02:04.4]} 16. Be3 {[%clk 0:01:58.5]} 16... Nxe4 {[%clk
0:02:04]} 17. Nxe4 {[%clk 0:01:43.6]} 17... Bxe4 {[%clk 0:02:04.9]} 18. f3
{[%clk 0:01:43.8]} 18... Bd5 {[%clk 0:01:56]} 19. b3 {[%clk 0:01:38.8]} 19...
Bc6 {[%clk 0:01:51.2]} 20. f4 {[%clk 0:01:27.6]} 20... Rac8 {[%clk 0:01:41.1]}
21. Rf2 {[%clk 0:01:17.4]} 21... Rfe8 {[%clk 0:01:29.2]} 22. fxe5 {[%clk
0:01:10.2]} 22... dxe5 {[%clk 0:01:25]} 23. Rdf1 {[%clk 0:01:08.8]} 23... Bxg2
{[%clk 0:01:15]} 24. Rxg2 {[%clk 0:01:08.8]} 24... Bxa3 {[%clk 0:01:03.7]} 25.
Rgf2 {[%clk 0:01:01.1]} 25... f6 {[%clk 0:00:55.9]} 26. Qg4 {[%clk 0:00:56.4]}
26... Kh8 {[%clk 0:00:55.6]} 27. h4 {[%clk 0:00:52.1]} 27... Bc5 {[%clk
0:00:42.2]} 28. Bxc5 {[%clk 0:00:45.6]} 28... Rxc5 {[%clk 0:00:41.7]} 29. h5
{[%clk 0:00:44.3]} 29... h6 {[%clk 0:00:34.9]} 30. Qg6 {[%clk 0:00:39.7]} 30...
Re6 {[%clk 0:00:19.5]} 31. Rxf6 {[%clk 0:00:29]} 31... Rxf6 {[%clk 0:00:18.9]}
32. Rxf6 {[%clk 0:00:27.8]} 32... gxf6 {[%clk 0:00:18.6]} 33. Qxh6+ {[%clk
0:00:24]} 33... Kg8 {[%clk 0:00:18.1]} 34. Qxf6 {[%clk 0:00:20.3]} 34... Rc6
{[%clk 0:00:16.1]} 35. Qxe5 {[%clk 0:00:17.1]} 35... Qc7 {[%clk 0:00:14.3]} 36.
Qe4 {[%clk 0:00:07.7]} 36... Rxc2 {[%clk 0:00:12.6]} 37. Qg6+ {[%clk 0:00:06.2]}
37... Kf8 {[%clk 0:00:12.6]} 38. Qf5+ {[%clk 0:00:06.2]} 38... Ke8 {[%clk
0:00:12.2]} 39. Qe4+ {[%clk 0:00:06.1]} 39... Kd8 {[%clk 0:00:12.1]} 40. Qd3+
{[%clk 0:00:06.2]} 40... Kc8 {[%clk 0:00:11.8]} 41. h6 {[%clk 0:00:06.5]} 41...
Rc1+ {[%clk 0:00:11.4]} 42. Kh2 {[%clk 0:00:05.6]} 42... Qc2+ {[%clk 0:00:11]}
43. Qxc2+ {[%clk 0:00:05.8]} 43... Rxc2+ {[%clk 0:00:10.8]} 44. Kh3 {[%clk
0:00:06.7]} 44... Rc6 {[%clk 0:00:10.9]} 45. h7 {[%clk 0:00:05.9]} 45... Rh6+
{[%clk 0:00:10.3]} 46. Kg4 {[%clk 0:00:06.8]} 46... Rxh7 {[%clk 0:00:10.9]} 47.
Kf5 {[%clk 0:00:07.1]} 47... a5 {[%clk 0:00:10.7]} 48. g4 {[%clk 0:00:06.4]}
48... a4 {[%clk 0:00:10.4]} 49. g5 {[%clk 0:00:06.7]} 49... axb3 {[%clk
0:00:10]} 50. g6 {[%clk 0:00:07.3]} 50... Rg7 {[%clk 0:00:09.5]} 0-1

[Event "*** SCC Grand Prix: Titled Tuesday Blitz"]
[Site "Chess.com"]
[Date "2020.10.13"]
[Round "3"]
[White "Sacbutt"]
[Black "PrinceMurad09"]
[Result "0-1"]
[WhiteElo "2302"]
[BlackElo "2533"]
[TimeControl "180+1"]
[EndTime "10:29:42 PDT"]
[Termination "PrinceMurad09 won on time"]

1. e4 {[%clk 0:03:00.9]} 1... c5 {[%clk 0:02:59.4]} 2. Nf3 {[%clk 0:03:00.7]}
2... d6 {[%clk 0:02:59.1]} 3. d4 {[%clk 0:03:00.7]} 3... cxd4 {[%clk 0:02:58.9]}
4. Qxd4 {[%clk 0:03:00.1]} 4... e5 {[%clk 0:02:57.4]} 5. Qd3 {[%clk 0:02:57.3]}
5... h6 {[%clk 0:02:57]} 6. c4 {[%clk 0:02:57.2]} 6... Nf6 {[%clk 0:02:56.3]} 7.
Nc3 {[%clk 0:02:57.6]} 7... Be7 {[%clk 0:02:56.4]} 8. Be2 {[%clk 0:02:57.1]}
8... O-O {[%clk 0:02:56.8]} 9. O-O {[%clk 0:02:57.3]} 9... Be6 {[%clk
0:02:56.9]} 10. b3 {[%clk 0:02:57]} 10... Nbd7 {[%clk 0:02:56.7]} 11. Bb2 {[%clk
0:02:57.3]} 11... Rc8 {[%clk 0:02:56.2]} 12. Rfe1 {[%clk 0:02:56.1]} 12... Nc5
{[%clk 0:02:55.8]} 13. Qe3 {[%clk 0:02:52.9]} 13... Ng4 {[%clk 0:02:55.4]} 14.
Qd2 {[%clk 0:02:52]} 14... f5 {[%clk 0:02:55.5]} 15. exf5 {[%clk 0:02:40.8]}
15... Bxf5 {[%clk 0:02:54.2]} 16. Rad1 {[%clk 0:02:36.6]} 16... Kh8 {[%clk
0:02:51.9]} 17. h3 {[%clk 0:02:35.7]} 17... Nf6 {[%clk 0:02:51.5]} 18. Nd5
{[%clk 0:02:30.5]} 18... Nfe4 {[%clk 0:02:42.2]} 19. Qe3 {[%clk 0:02:23.5]}
19... Qe8 {[%clk 0:02:16.4]} 20. Bd3 {[%clk 0:02:01.7]} 20... Bd8 {[%clk
0:02:10.6]} 21. Bxe4 {[%clk 0:01:57.7]} 21... Bxe4 {[%clk 0:02:06.9]} 22. Nd2
{[%clk 0:01:53.9]} 22... Bg5 {[%clk 0:02:04.4]} 23. Qc3 {[%clk 0:01:47.2]} 23...
Bxd5 {[%clk 0:01:56.2]} 24. cxd5 {[%clk 0:01:41.1]} 24... Ne4 {[%clk 0:01:46.4]}
25. Nxe4 {[%clk 0:01:40.7]} 25... Rxc3 {[%clk 0:01:45.7]} 26. Bxc3 {[%clk
0:01:41.1]} 26... Be7 {[%clk 0:01:43.4]} 27. Bd2 {[%clk 0:01:27.7]} 27... Qb5
{[%clk 0:01:38.7]} 28. Be3 {[%clk 0:01:26.2]} 28... Rc8 {[%clk 0:01:37]} 29. Rd2
{[%clk 0:00:55.3]} 29... a5 {[%clk 0:01:32.9]} 30. Red1 {[%clk 0:00:53.1]} 30...
a4 {[%clk 0:01:26.2]} 31. bxa4 {[%clk 0:00:49.2]} 31... Qxa4 {[%clk 0:01:27.1]}
32. f3 {[%clk 0:00:46.7]} 32... b5 {[%clk 0:01:22.7]} 33. Kf2 {[%clk 0:00:45.3]}
33... b4 {[%clk 0:01:19.9]} 34. Rb1 {[%clk 0:00:44.2]} 34... Rc2 {[%clk
0:01:15.1]} 35. Rb2 {[%clk 0:00:43.5]} 35... Rc1 {[%clk 0:01:08.4]} 36. Rd3
{[%clk 0:00:34.6]} 36... Ra1 {[%clk 0:01:04.8]} 37. Rdd2 {[%clk 0:00:34.1]}
37... Qa6 {[%clk 0:01:01.4]} 38. Kg3 {[%clk 0:00:33.1]} 38... Qb5 {[%clk
0:00:50.3]} 39. Rb3 {[%clk 0:00:22.8]} 39... h5 {[%clk 0:00:48.9]} 40. Bg5
{[%clk 0:00:14.3]} 40... Bxg5 {[%clk 0:00:33.3]} 41. Nxg5 {[%clk 0:00:15.2]}
41... h4+ {[%clk 0:00:33.7]} 42. Kxh4 {[%clk 0:00:12]} 42... Qc4+ {[%clk
0:00:33.7]} 43. g4 {[%clk 0:00:10.8]} 43... Qf4 {[%clk 0:00:23.2]} 44. Rdb2
{[%clk 0:00:10.2]} 44... Qf6 {[%clk 0:00:06.1]} 45. Rxb4 {[%clk 0:00:10.1]}
45... Qh6+ {[%clk 0:00:05.7]} 46. Kg3 {[%clk 0:00:10.6]} 46... Qxg5 {[%clk
0:00:06.1]} 47. h4 {[%clk 0:00:07.4]} 47... Qe3 {[%clk 0:00:05.2]} 48. Rb8+
{[%clk 0:00:04.5]} 48... Kh7 {[%clk 0:00:05.1]} 49. g5 {[%clk 0:00:05.4]} 49...
Qf4+ {[%clk 0:00:05.3]} 50. Kg2 {[%clk 0:00:04.8]} 50... Qxh4 {[%clk 0:00:04.9]}
51. g6+ {[%clk 0:00:01.9]} 51... Kxg6 {[%clk 0:00:04.8]} 0-1

[Event "*** SCC Grand Prix: Titled Tuesday Blitz"]
[Site "Chess.com"]
[Date "2020.10.13"]
[Round "3"]
[White "Angel_Hranitel_37"]
[Black "Morshynska"]
[Result "1-0"]
[WhiteElo "2483"]
[BlackElo "2242"]
[TimeControl "180+1"]
[EndTime "10:29:42 PDT"]
[Termination "Angel_Hranitel_37 won on time"]

1. d4 {[%clk 0:03:00]} 1... d5 {[%clk 0:02:59.7]} 2. c4 {[%clk 0:02:59.9]} 2...
e6 {[%clk 0:03:00.1]} 3. Nf3 {[%clk 0:03:00.1]} 3... Nf6 {[%clk 0:03:00.2]} 4.
g3 {[%clk 0:03:01]} 4... Be7 {[%clk 0:02:54.8]} 5. Bg2 {[%clk 0:03:01.9]} 5...
O-O {[%clk 0:02:53.1]} 6. O-O {[%clk 0:03:02.8]} 6... b6 {[%clk 0:02:43.3]} 7.
Ne5 {[%clk 0:02:56.5]} 7... Bb7 {[%clk 0:02:43.3]} 8. Nc3 {[%clk 0:02:38.5]}
8... c5 {[%clk 0:02:36.2]} 9. dxc5 {[%clk 0:02:35.8]} 9... bxc5 {[%clk
0:02:33.2]} 10. cxd5 {[%clk 0:02:28.4]} 10... exd5 {[%clk 0:02:34.1]} 11. Qb3
{[%clk 0:02:28.7]} 11... Qb6 {[%clk 0:02:03.6]} 12. Nc4 {[%clk 0:02:27.8]} 12...
Qxb3 {[%clk 0:01:39]} 13. axb3 {[%clk 0:02:28.7]} 13... Nbd7 {[%clk 0:01:34.4]}
14. Na5 {[%clk 0:02:26.3]} 14... Rab8 {[%clk 0:01:25]} 15. Nxb7 {[%clk
0:02:26.3]} 15... Rxb7 {[%clk 0:01:25.9]} 16. Nxd5 {[%clk 0:02:27.2]} 16... Nxd5
{[%clk 0:01:24.7]} 17. Bxd5 {[%clk 0:02:28.1]} 17... Rb6 {[%clk 0:01:10.3]} 18.
Rxa7 {[%clk 0:02:25.9]} 18... Rd6 {[%clk 0:01:10.2]} 19. e4 {[%clk 0:02:20.9]}
19... Bf6 {[%clk 0:01:03.8]} 20. Bf4 {[%clk 0:02:06.9]} 20... Ne5 {[%clk
0:00:54.8]} 21. Rd1 {[%clk 0:02:02.4]} 21... Rfd8 {[%clk 0:00:51.6]} 22. Bxe5
{[%clk 0:02:01.3]} 22... Bxe5 {[%clk 0:00:52.5]} 23. Bxf7+ {[%clk 0:01:46.9]}
23... Kf8 {[%clk 0:00:49.8]} 24. Rxd6 {[%clk 0:01:41.3]} 24... Rxd6 {[%clk
0:00:50.7]} 25. Bd5 {[%clk 0:01:42.1]} 25... Bxb2 {[%clk 0:00:45.1]} 26. f4
{[%clk 0:01:32.3]} 26... h5 {[%clk 0:00:30.2]} 27. Kg2 {[%clk 0:01:24.4]} 27...
Bd4 {[%clk 0:00:24.1]} 28. Rf7+ {[%clk 0:01:21.6]} 28... Ke8 {[%clk 0:00:23.6]}
29. Rb7 {[%clk 0:01:16]} 29... Ra6 {[%clk 0:00:21.3]} 30. Bf7+ {[%clk
0:01:11.8]} 30... Kf8 {[%clk 0:00:18.3]} 31. Bxh5 {[%clk 0:01:11.7]} 31... Ra2+
{[%clk 0:00:15.8]} 32. Kh3 {[%clk 0:01:06]} 32... Bg1 {[%clk 0:00:15.5]} 33. Bf7
{[%clk 0:00:59.8]} 33... Rxh2+ {[%clk 0:00:14.4]} 34. Kg4 {[%clk 0:01:00.3]}
34... Re2 {[%clk 0:00:08.1]} 35. Bd5 {[%clk 0:00:59.5]} 35... Bd4 {[%clk
0:00:06.4]} 36. Kf5 {[%clk 0:00:58.1]} 36... Rg2 {[%clk 0:00:05.4]} 37. g4
{[%clk 0:00:26.1]} 37... Rf2 {[%clk 0:00:05.3]} 38. Rf7+ {[%clk 0:00:20.3]}
38... Ke8 {[%clk 0:00:05.5]} 39. Ke6 {[%clk 0:00:19.9]} 39... Be3 {[%clk
0:00:04.5]} 40. Bc6+ {[%clk 0:00:16.4]} 40... Kd8 {[%clk 0:00:03.7]} 41. Rd7+
{[%clk 0:00:15.9]} 41... Kc8 {[%clk 0:00:03.7]} 42. f5 {[%clk 0:00:16.2]} 42...
Rg2 {[%clk 0:00:02.1]} 43. Rxg7 {[%clk 0:00:06.9]} 43... Bd4 {[%clk 0:00:02]}
44. Rg8+ {[%clk 0:00:06.7]} 44... Kc7 {[%clk 0:00:02.1]} 45. Bd5 {[%clk
0:00:07.6]} 45... Kb6 {[%clk 0:00:02.1]} 46. f6 {[%clk 0:00:07.1]} 46... Rf2
{[%clk 0:00:01.5]} 47. g5 {[%clk 0:00:07.4]} 47... c4 {[%clk 0:00:01.1]} 48.
Rb8+ {[%clk 0:00:08]} 1-0

[Event "*** SCC Grand Prix: Titled Tuesday Blitz"]
[Site "Chess.com"]
[Date "2020.10.13"]
[Round "3"]
[White "AlexTriapishko"]
[Black "Balla_Tamas"]
[Result "1-0"]
[WhiteElo "2792"]
[BlackElo "2453"]
[TimeControl "180+1"]
[EndTime "10:29:44 PDT"]
[Termination "AlexTriapishko won by resignation"]

1. Nf3 {[%clk 0:03:00.9]} 1... c5 {[%clk 0:02:56.6]} 2. g3 {[%clk 0:03:00.9]}
2... g6 {[%clk 0:02:56.4]} 3. c3 {[%clk 0:02:59.6]} 3... Bg7 {[%clk 0:02:56.4]}
4. d4 {[%clk 0:03:00.5]} 4... cxd4 {[%clk 0:02:53.8]} 5. cxd4 {[%clk 0:03:01.4]}
5... d5 {[%clk 0:02:54.2]} 6. Bg2 {[%clk 0:03:02.3]} 6... Nc6 {[%clk 0:02:54.6]}
7. O-O {[%clk 0:03:02.9]} 7... Bg4 {[%clk 0:02:54.3]} 8. Nc3 {[%clk 0:03:01.8]}
8... Bxf3 {[%clk 0:02:50.9]} 9. Bxf3 {[%clk 0:03:02.7]} 9... e6 {[%clk
0:02:46.4]} 10. e3 {[%clk 0:02:58.1]} 10... Nge7 {[%clk 0:02:41]} 11. Bd2 {[%clk
0:02:53.2]} 11... O-O {[%clk 0:02:39.2]} 12. Rc1 {[%clk 0:02:53.1]} 12... Rc8
{[%clk 0:02:37.8]} 13. Na4 {[%clk 0:02:50]} 13... b6 {[%clk 0:02:30.4]} 14. Be2
{[%clk 0:02:50]} 14... Qd6 {[%clk 0:02:28.2]} 15. Nc3 {[%clk 0:02:46.7]} 15...
Nb8 {[%clk 0:02:21.8]} 16. Nb5 {[%clk 0:02:45.1]} 16... Qd7 {[%clk 0:02:21.8]}
17. Qb3 {[%clk 0:02:30.8]} 17... Rxc1 {[%clk 0:02:18.4]} 18. Rxc1 {[%clk
0:02:30.4]} 18... Rc8 {[%clk 0:02:19]} 19. Rxc8+ {[%clk 0:02:28.4]} 19... Nxc8
{[%clk 0:02:18.7]} 20. Qc2 {[%clk 0:02:23.4]} 20... Bf8 {[%clk 0:02:16.1]} 21.
Qc7 {[%clk 0:02:16.9]} 21... Qxc7 {[%clk 0:02:09.2]} 22. Nxc7 {[%clk 0:02:17.8]}
22... Bd6 {[%clk 0:02:07.2]} 23. Nb5 {[%clk 0:02:13.4]} 23... Kf8 {[%clk
0:01:59.6]} 24. Nxd6 {[%clk 0:02:10.8]} 24... Nxd6 {[%clk 0:01:59.7]} 25. Kg2
{[%clk 0:02:11.7]} 25... f5 {[%clk 0:01:58.1]} 26. b3 {[%clk 0:02:11.9]} 26...
Nc6 {[%clk 0:01:55.7]} 27. f3 {[%clk 0:02:12.2]} 27... Ke7 {[%clk 0:01:55]} 28.
g4 {[%clk 0:02:12.4]} 28... a5 {[%clk 0:01:52.9]} 29. h3 {[%clk 0:02:09.7]}
29... Nb4 {[%clk 0:01:52.5]} 30. a3 {[%clk 0:02:04.2]} 30... Nc6 {[%clk
0:01:47.4]} 31. Bd3 {[%clk 0:01:54.5]} 31... f4 {[%clk 0:01:41]} 32. Kf2 {[%clk
0:01:47.3]} 32... fxe3+ {[%clk 0:01:38.8]} 33. Kxe3 {[%clk 0:01:48.2]} 33... b5
{[%clk 0:01:34.3]} 34. a4 {[%clk 0:01:35.5]} 34... bxa4 {[%clk 0:01:22.9]} 35.
bxa4 {[%clk 0:01:36.4]} 35... Nb4 {[%clk 0:01:12.1]} 36. Bxb4 {[%clk 0:01:24.3]}
36... axb4 {[%clk 0:01:13]} 37. Kd2 {[%clk 0:01:24.4]} 37... Nc4+ {[%clk
0:01:10.3]} 38. Kc2 {[%clk 0:01:21.1]} 38... Na5 {[%clk 0:01:05.8]} 39. f4
{[%clk 0:01:14.5]} 39... Kf6 {[%clk 0:01:04.5]} 40. h4 {[%clk 0:01:06.1]} 40...
h6 {[%clk 0:01:03.4]} 41. g5+ {[%clk 0:00:52.3]} 41... Kg7 {[%clk 0:01:01.9]}
42. Bb5 {[%clk 0:00:48.6]} 42... hxg5 {[%clk 0:01:01]} 43. fxg5 {[%clk
0:00:35.8]} 43... Kf7 {[%clk 0:01:01.2]} 44. Kb2 {[%clk 0:00:30.5]} 44... Ke7
{[%clk 0:00:59.7]} 45. Be2 {[%clk 0:00:18.9]} 45... Kf7 {[%clk 0:00:59.7]} 46.
Bg4 {[%clk 0:00:12.1]} 46... Ke7 {[%clk 0:00:58.5]} 47. h5 {[%clk 0:00:11.6]}
47... gxh5 {[%clk 0:00:57.8]} 48. Bxh5 {[%clk 0:00:12.5]} 48... Kd6 {[%clk
0:00:36.8]} 49. g6 {[%clk 0:00:05.8]} 49... Nc4+ {[%clk 0:00:21.4]} 50. Kb3
{[%clk 0:00:05.3]} 50... Nd2+ {[%clk 0:00:22]} 51. Kxb4 {[%clk 0:00:05.6]} 51...
Ne4 {[%clk 0:00:22.7]} 52. g7 {[%clk 0:00:06.1]} 52... Nf6 {[%clk 0:00:22.8]}
53. Bf7 {[%clk 0:00:06.7]} 53... e5 {[%clk 0:00:22.4]} 54. dxe5+ {[%clk
0:00:05.6]} 54... Kxe5 {[%clk 0:00:23]} 55. g8=Q {[%clk 0:00:05.9]} 55... Nxg8
{[%clk 0:00:23.2]} 56. Bxg8 {[%clk 0:00:06.8]} 56... d4 {[%clk 0:00:23.8]} 57.
Bh7 {[%clk 0:00:06.8]} 57... Kd5 {[%clk 0:00:23.5]} 58. Kb5 {[%clk 0:00:06.8]}
58... Kd6 {[%clk 0:00:23.5]} 59. Kb6 {[%clk 0:00:07]} 59... d3 {[%clk
0:00:23.1]} 60. Bxd3 {[%clk 0:00:06.5]} 1-0

[Event "*** SCC Grand Prix: Titled Tuesday Blitz"]
[Site "Chess.com"]
[Date "2020.10.13"]
[Round "3"]
[White "KarstenHansch"]
[Black "tsvet2005"]
[Result "0-1"]
[WhiteElo "2487"]
[BlackElo "2704"]
[TimeControl "180+1"]
[EndTime "10:29:45 PDT"]
[Termination "tsvet2005 won by resignation"]

1. e4 {[%clk 0:03:00.9]} 1... c5 {[%clk 0:03:00.7]} 2. Nf3 {[%clk 0:03:00.8]}
2... d6 {[%clk 0:03:01.2]} 3. Bb5+ {[%clk 0:03:00.5]} 3... Nd7 {[%clk
0:03:01.1]} 4. c3 {[%clk 0:02:59.9]} 4... Nf6 {[%clk 0:02:59.8]} 5. Qe2 {[%clk
0:02:59.6]} 5... a6 {[%clk 0:02:59.5]} 6. Ba4 {[%clk 0:02:59.7]} 6... b5 {[%clk
0:02:59.9]} 7. Bc2 {[%clk 0:02:59.8]} 7... Bb7 {[%clk 0:02:58.4]} 8. d4 {[%clk
0:02:58.7]} 8... e6 {[%clk 0:02:58.3]} 9. O-O {[%clk 0:02:58.2]} 9... Qc7 {[%clk
0:02:58.5]} 10. Re1 {[%clk 0:02:49.7]} 10... Be7 {[%clk 0:02:58.3]} 11. e5
{[%clk 0:02:46.5]} 11... dxe5 {[%clk 0:02:40.4]} 12. dxe5 {[%clk 0:02:45.9]}
12... Nd5 {[%clk 0:02:40.7]} 13. Nbd2 {[%clk 0:02:44.9]} 13... O-O {[%clk
0:02:37.2]} 14. a3 {[%clk 0:02:38.1]} 14... Rfd8 {[%clk 0:02:34.7]} 15. c4
{[%clk 0:02:38.1]} 15... Nf4 {[%clk 0:02:20.1]} 16. Qe3 {[%clk 0:02:37.1]} 16...
Ng6 {[%clk 0:02:20.3]} 17. Bxg6 {[%clk 0:02:25.7]} 17... hxg6 {[%clk 0:02:18.4]}
18. b3 {[%clk 0:02:25.6]} 18... Nb6 {[%clk 0:02:09.8]} 19. Bb2 {[%clk
0:02:05.3]} 19... bxc4 {[%clk 0:01:56.5]} 20. Nxc4 {[%clk 0:02:01.7]} 20... Nd5
{[%clk 0:01:56.5]} 21. Qe2 {[%clk 0:01:53]} 21... Nf4 {[%clk 0:01:56.3]} 22. Qe3
{[%clk 0:01:50.3]} 22... g5 {[%clk 0:01:40.1]} 23. Rad1 {[%clk 0:01:44.9]} 23...
Nxg2 {[%clk 0:01:36.7]} 24. Kxg2 {[%clk 0:01:39.9]} 24... g4 {[%clk 0:01:36.9]}
25. Nd2 {[%clk 0:01:32.4]} 25... c4 {[%clk 0:00:57.9]} 26. Kg3 {[%clk
0:01:14.1]} 26... gxf3 {[%clk 0:00:55.2]} 27. Nxc4 {[%clk 0:01:04]} 27... Rxd1
{[%clk 0:00:34.6]} 28. Rxd1 {[%clk 0:00:20.5]} 28... Rd8 {[%clk 0:00:34.6]} 29.
Rxd8+ {[%clk 0:00:17.4]} 29... Qxd8 {[%clk 0:00:35.5]} 30. Qd2 {[%clk
0:00:11.1]} 30... Qc7 {[%clk 0:00:29.4]} 31. Nd6 {[%clk 0:00:09.3]} 31... Bd5
{[%clk 0:00:27.4]} 32. Qf4 {[%clk 0:00:09.2]} 32... f6 {[%clk 0:00:19.9]} 33.
Nc4 {[%clk 0:00:05.1]} 33... f5 {[%clk 0:00:08.4]} 34. Nd6 {[%clk 0:00:04.7]}
34... g5 {[%clk 0:00:08.1]} 35. Qd4 {[%clk 0:00:01.3]} 35... Bxd6 {[%clk
0:00:05.8]} 36. exd6 {[%clk 0:00:01.5]} 36... Qxd6+ {[%clk 0:00:06.5]} 37. Kh3
{[%clk 0:00:02.4]} 37... g4+ {[%clk 0:00:06.5]} 38. Kh4 {[%clk 0:00:02.9]} 38...
Qe7+ {[%clk 0:00:05.5]} 39. Qf6 {[%clk 0:00:02.8]} 39... Qxf6+ {[%clk
0:00:05.3]} 40. Bxf6 {[%clk 0:00:03.1]} 40... Bxb3 {[%clk 0:00:06.2]} 41. Be5
{[%clk 0:00:04]} 41... Kf7 {[%clk 0:00:06.2]} 42. Kg3 {[%clk 0:00:04.4]} 42...
Kg6 {[%clk 0:00:06.3]} 43. Bf4 {[%clk 0:00:05.3]} 43... Kf6 {[%clk 0:00:06.3]}
44. Be3 {[%clk 0:00:05.8]} 44... e5 {[%clk 0:00:06.6]} 45. Bc5 {[%clk
0:00:06.7]} 45... Be6 {[%clk 0:00:05.8]} 46. Bb6 {[%clk 0:00:06.8]} 46... f4+
{[%clk 0:00:06.1]} 47. Kh4 {[%clk 0:00:06.5]} 47... e4 {[%clk 0:00:05.8]} 48.
Bd4+ {[%clk 0:00:06]} 48... Kf5 {[%clk 0:00:06.1]} 49. h3 {[%clk 0:00:04.9]}
49... e3 {[%clk 0:00:04.5]} 50. hxg4+ {[%clk 0:00:05.1]} 50... Ke4 {[%clk
0:00:05]} 51. fxe3 {[%clk 0:00:05.4]} 51... f2 {[%clk 0:00:05.9]} 0-1